Cogmind - Beta 14 @@@ ROGUE MODE // 2024.09.17 @ 22:41:06 Player: Duduxx Result: Destroyed by Y-45 Defender with Heavy Assault Rifle Performance ------------- Evolutions (1) 500 Regions Visited (3) 600 Robots Destroyed (32) 160 Value Destroyed (592) 592 Prototype IDs (2) 40 Alien Tech Used (0) 0 Bonus (116) 116 TOTAL SCORE: 2008 Bonus ------- High Alert Combat Kills 10 Follower Combat Kills 106 Cogmind --------- Core Integrity 0/400 Matter 282/300 Energy 250/250 System Corruption 8% Temperature Warm (103) Movement Walking (190) Ox1 Location -9/Materials Parts ------- > --- POWER (1) -------- Ion Engine > --- PROPULSION (4) --- Aluminum Leg Aluminum Leg > --- UTILITY (2) ------ Medium Storage Unit Field Recycling Unit > --- WEAPON (2) ------- Assault Rifle Ripper > --- INVENTORY (10) --- Signal Interpreter Heavy EM Pulse Gun Rocket Launcher Rocket Launcher Rocket Launcher Peak State ------------ > --- POWER ------------ Improved Ion Engine > --- PROPULSION ------- Improved Hover Unit Improved Hover Unit Improved Hover Unit Improved Hover Unit > --- UTILITY ---------- Medium Storage Unit Structural Scanner > --- WEAPON ----------- Light Assault Rifle Ripper > --- INVENTORY -------- Ion Engine Signal Interpreter Field Recycling Unit Rocket Launcher Rocket Launcher Rocket Launcher [Rating: 18] Favorites ----------- Power Ion Engine Engine Ion Engine Propulsion Light Treads Treads Light Treads Leg Aluminum Leg Hover Unit Improved Hover Unit Utility Medium Storage Unit Device Structural Scanner Storage Medium Storage Unit Protection Medium Armor Plating Weapon Light Assault Rifle Energy Gun Small Laser Ballistic Gun Light Assault Rifle Slashing Weapon Ripper Build | -11 -10 -10 -9 ------- Run | Yrd Mat Min Mat Slots Evolved 2 | . . . 2 Power . | . . . . Propulsion 2 | . . . 2 Utility . | . . . . Weapon . | . . . . Parts Attached 30 | 6 3 . 21 Power 4 | 1 . . 3 Engine 4 | 1 . . 3 Core . | . . . . Reactor . | . . . . Propulsion 13 | 2 . . 11 Treads 2 | 2 . . . Leg 3 | . . . 3 Wheel . | . . . . Hover 8 | . . . 8 Flight . | . . . . Utility 6 | 1 3 . 2 Device 3 | . 2 . 1 Storage 2 | 1 1 . . Processor . | . . . . Hackware . | . . . . Protection 1 | . . . 1 Artifact . | . . . . Weapon 7 | 2 . . 5 Energy Gun 2 | . . . 2 Energy Cannon . | . . . . Ballistic Gun 3 | 2 . . 1 Ballistic Cannon . | . . . . Launcher . | . . . . Special Weapon . | . . . . Impact Weapon . | . . . . Slashing Weapon 2 | . . . 2 Piercing Weapon . | . . . . Special Melee Weapon . | . . . . Unidentified Prototypes . | . . . . Parts Lost 17 | . 2 . 15 Power 1 | . . . 1 Propulsion 10 | . 1 . 9 Utility 3 | . 1 . 2 Weapon 3 | . . . 3 Highest Loss Streak 12 | . 1 . 12 To Critical Strikes 1 | . 1 . . Average Slot Usage (%) 81 | . 87 85 73 Engine 12 | . 14 14 11 Treads 12 | . 25 14 . Leg 2 | . . . 6 Hover 6 | . . . 17 Device 9 | . 5 14 8 Storage 12 | . 14 14 11 Ballistic Gun 20 | . 28 28 7 Slashing Weapon 3 | . . . 8 Peak Build Rating 18 | 6 8 7 18 Average Rating 8 | 4 6 7 11 On Entrance 5 | . 6 7 7 Naked Turns . | . . . . Heaviest Build 28 | 13 19 19 28 Greatest Support 40 | 40 40 20 28 Greatest Overweight (x) 8 | 1 . . 8 Average Overweight (x) . | . . . . Largest Inventory Capacity 10 | 8 10 10 10 Average Capacity 9 | 6 8 10 10 Most Carried 9 | 1 7 8 9 Average Carried 4 | . 2 7 4 Final Capacity 10 | 8 10 10 10 Final Carried 8 | 1 6 8 5 Class Distribution -------------------- 89% | Mutant 10% | Scavenger-Mutant Dominant Class ---------------- Mutant | -10/Materials Mutant | -10/Mines Mutant | -9/Materials Resources | -11 -10 -10 -9 ----------- Run | Yrd Mat Min Mat Matter Collected 646 | 253 163 25 205 Remotely 149 | . 149 . . Salvage Created 994 | . 205 53 736 Parts 60 | . 12 4 44 Haulers Intercepted 3 | . 1 . 2 Recyclers Shooed . | . . . . Parts Field Recycled . | . . . . Retrieved Matter . | . . . . Parts Self-Destructed . | . . . . Prevented . | . . . . Kills | -11 -10 -10 -9 ------- Run | Yrd Mat Min Mat Combat Hostiles Destroyed 25 | . 7 3 15 Melee 14 | . . . 14 Guns 11 | . 7 3 1 Classes Destroyed 7 | . 3 . 4 Worker 2 | . . . 2 Hauler 3 | . 1 . 2 Recycler 1 | . . . 1 Watcher 1 | . . . 1 Swarmer 14 | . 5 3 6 Grunt 9 | . 2 . 7 Sentry 2 | . . . 2 Best Kill Streak 12 | . 3 3 12 Combat Bots Only 10 | . 3 3 10 Max Kills in Single Turn 1 | . 1 1 1 Gunslinging . | . . . . Exploded . | . . . . Melee 1 | . . . 1 Uniques/NPCs Destroyed . | . . . . Combat | -11 -10 -10 -9 -------- Run | Yrd Mat Min Mat Hostile Shots Fired 249 | . 74 14 161 Missed 68 | . 20 5 43 Damage Taken 2032 | . 459 69 1504 Core 484 | . 59 21 404 Absorbed by Shields . | . . . . Core Remaining (%) 84 | 100 . 68 . Volleys Fired 49 | . 32 5 12 Largest 2 | . 2 2 2 Hottest 40 | . 40 40 40 Shots Fired 89 | . 64 10 15 Gun 89 | . 64 10 15 Cannon . | . . . . Launcher . | . . . . Special . | . . . . Kinetic 83 | . 64 10 9 Thermal 6 | . . . 6 Explosive . | . . . . Electromagnetic . | . . . . Robot Hit Streak 7 | . 7 3 2 Robot Miss Streak 4 | . 4 2 4 Penetration Max . | . . . . Secondary Targets 4 | . 3 1 . Max Gunslinging Chain 1 | . 1 1 . Shots Hit Robots 76 | . 34 5 37 Core Hits 38 | . 15 3 20 Critical Kills . | . . . . Critical Parts Destroyed . | . . . . Critical Strikes 3 | . . . 3 Sever 3 | . . . 3 Melee Attacks 47 | . . . 47 Impact . | . . . . Slashing 47 | . . . 47 Piercing . | . . . . Sneak Attacks 6 | . . . 6 Combat Hostiles 1 | . . . 1 Follow-up Attacks . | . . . . Damage Inflicted 1839 | . 404 59 1376 Guns 528 | . 401 52 75 Cannons . | . . . . Explosions . | . . . . Melee 1301 | . . . 1301 Ramming 10 | . 3 7 . Kinetic 473 | . 401 52 20 Thermal 55 | . . . 55 Explosive . | . . . . Electromagnetic . | . . . . Impact . | . . . . Slashing 1301 | . . . 1301 Piercing . | . . . . Highest Corruption 8 | . 1 1 8 Average Corruption 3 | . 1 1 8 Corruption Purged . | . . . . Corruption Blocked . | . . . . Effects 12 | . . 4 8 Message Errors 1 | . . . 1 Matter Fused 6 | . . 2 4 Heat Flow Errors 1 | . . . 1 Energy Discharges 1 | . . . 1 Data Loss (minor) 2 | . . 2 . Data Loss (major) 1 | . . . 1 Overload Shots . | . . . . Overflow Damage 57 | . . . 57 Projectiles . | . . . . Explosions . | . . . . Melee 57 | . . . 57 Knockbacks . | . . . . Impact . | . . . . Kinetic . | . . . . Secondary . | . . . . Self-Inflicted Damage . | . . . . Shots . | . . . . Rammed 2 | . 1 1 . Targets Rammed 2 | . 1 1 . Kicked . | . . . . Crushed . | . . . . Highest Temperature 94 | . 9 . 94 Average Temperature 10 | . 8 . 12 Received Heat Transfer 420 | . 48 . 372 Siege Activations . | . . . . Robots Corrupted . | . . . . Combat Hostiles . | . . . . Parts Fried . | . . . . Impact Corruptions . | . . . . Robots Melted . | . . . . Combat Hostiles . | . . . . Parts Melted . | . . . . Heat Transferred 125 | . . . 125 Parts Sabotaged . | . . . . Parts Stolen . | . . . . Parts Stripped . | . . . . Power Chain Reactions . | . . . . Alert | -11 -10 -10 -9 ------- Run | Yrd Mat Min Mat Peak Influence 442 | . 172 70 442 Initial 27 | . . . 27 Average 129 | . 53 68 261 Maximum Alert Level 2 | . . . 2 Low Security (%) 70 | 100 100 100 17 Level 1 24 | . . . 69 Level 2 4 | . . . 13 Level 3 . | . . . . Level 4 . | . . . . Level 5 . | . . . . High Security . | . . . . Max Security . | . . . . Squads Dispatched 1 | . . . 1 Investigation 1 | . . . 1 Extermination . | . . . . Reinforcement . | . . . . Assault . | . . . . Garrison . | . . . . Intercept . | . . . . Searches Triggered . | . . . . Construction Impeded . | . . . . Haulers Reinforced . | . . . . Active Scanning Responses . | . . . . Cargo Convoy Interrupts . | . . . . Stealth | -11 -10 -10 -9 --------- Run | Yrd Mat Min Mat Distress Signals 3 | . . . 3 Communications Jammed . | . . . . Distress Signals . | . . . . Times Spotted 43 | . 10 3 30 Peak Tracking Total 7 | . 3 3 7 Tactical Retreats 1 | . . . 1 Traps | -11 -10 -10 -9 ------- Run | Yrd Mat Min Mat Traps Triggered 1 | . 1 . . Indirectly . | . . . . Trap Hack Attempts . | . . . . Triggered . | . . . . Disarmed . | . . . . Reprogrammed . | . . . . Reused . | . . . . Traps Extracted . | . . . . Installed . | . . . . Triggered . | . . . . Machines | -11 -10 -10 -9 ---------- Run | Yrd Mat Min Mat Machines Disabled . | . . . . Max in Single Turn . | . . . . Machines Repaired . | . . . . Machines Dismantled . | . . . . Machines Sabotaged . | . . . . Overloaded Fab Kills . | . . . . Hacking | -11 -10 -10 -9 --------- Run | Yrd Mat Min Mat Machines Accessed 1 | . . . 1 Terminals 1 | . . . 1 Fabricators . | . . . . Repair Stations . | . . . . Recycling Units . | . . . . Scanalyzers . | . . . . Garrison Access . | . . . . Total Hacks 3 | . . . 3 Successful 3 | . . . 3 Failed . | . . . . Catastrophic . | . . . . Database Lockouts . | . . . . Manual . | . . . . Terminals 3 | . . . 3 Fabricators . | . . . . Repair Stations . | . . . . Recycling Units . | . . . . Scanalyzers . | . . . . Garrison Access . | . . . . Terminal Hacks 3 | . . . 3 Record 1 | . . . 1 Prototype ID Bank 1 | . . . 1 Emergency Access Points 1 | . . . 1 Fabricator Hacks . | . . . . Repair Station Hacks . | . . . . Recycling Unit Hacks . | . . . . Scanalyzer . | . . . . Garrison Access Hacks . | . . . . Unauthorized Hacks . | . . . . Terminals . | . . . . Fabricators . | . . . . Repair Stations . | . . . . Recycling Units . | . . . . Scanalyzers . | . . . . Garrison Access . | . . . . Data Cores Recovered . | . . . . Used . | . . . . Hacking Detections 1 | . . . 1 Full Trace Events 1 | . . . 1 Feedback Events . | . . . . Feedback Blocked . | . . . . Robot Schematics Acquired . | . . . . Robots Built . | . . . . Authchips . | . . . . Time . | . . . . Total Robot Build Rating . | . . . . Part Schematics Acquired . | . . . . Parts Built . | . . . . Authchips . | . . . . Time . | . . . . Total Part Build Rating . | . . . . Parts Repaired . | . . . . Time . | . . . . Parts Recycled . | . . . . Recycled Matter . | . . . . Retrieved Matter . | . . . . Retrieved Components . | . . . . Parts Scanalyzed . | . . . . Part Schematics Acquired . | . . . . Parts Damaged . | . . . . Bothacking | -11 -10 -10 -9 ------------ Run | Yrd Mat Min Mat Used RIF Installer . | . . . . Robots Hacked . | . . . . Non-combat . | . . . . Combat . | . . . . Robot Hacks Applied . | . . . . Relay Couplers Released . | . . . . Fabnet Peak Effective % . | . . . . Robots Rewired . | . . . . Allies Hacked . | . . . . Hacks Repelled . | . . . . Allies | -11 -10 -10 -9 -------- Run | Yrd Mat Min Mat Total Allies 3 | . . 3 . Largest Group 3 | . . 3 3 Highest-Rated Group 40 | . . 40 40 Highest-Rated Ally 16 | . . 16 16 Total Orders 4 | . . . 4 FOLLOW 2 | . . . 2 GUARD 2 | . . . 2 Ally Attacks 32 | . . . 32 Total Damage 320 | . . . 320 Kills 7 | . . . 7 Allies Corrupted . | . . . . Allies Melted . | . . . . Intel | -11 -10 -10 -9 ------- Run | Yrd Mat Min Mat Robot Analysis Total . | . . . . Derelict Logs Recovered 1 | . . 1 . Drone Launches . | . . . . Drone Recoveries . | . . . . Exploration | -11 -10 -10 -9 ------------- Run | Yrd Mat Min Mat Turns Passed 1351 | 68 412 387 484 Spaces Moved 708 | 39 193 228 248 Core 11 | 4 . . 7 Treads 456 | 35 193 228 . Legs 67 | . . . 67 Wheels . | . . . . Hover 174 | . . . 174 Flight . | . . . . Fastest Speed 48 | 50 160 160 48 Average Speed 141 | 152 160 160 108 Slowest Speed 450 | 160 160 160 450 Overloaded Moves . | . . . . Propulsion Burnouts . | . . . . Robots Hopped . | . . . . Cave-ins Triggered 1 | . . . 1 Exploration Rate (%) 33 | 5 42 59 28 Regions Visited 3 Branch Regions 1 Pre-discovered Areas 1 | . . 1 . Known Exits Taken . | . . . . Unknown Exits Taken 3 | 1 1 1 . Scrap Searched 2 | . . 2 . Spaces Dug 1 | . . . 1 Terrain Destroyed 1 | . . . 1 Melee 1 | . . . 1 Projectile . | . . . . AOE . | . . . . Terrain Rammed . | . . . . Walls Destroyed . | . . . . Machines Disabled . | . . . . Actions | -11 -10 -10 -9 --------- Run | Yrd Mat Min Mat Total 901 | 45 238 241 377 Wait 45 | . 3 4 38 Move 705 | 38 192 227 248 Hop . | . . . . Pick Up 14 | 1 6 3 4 Fast Attach 18 | 6 1 . 11 Attach 9 | . 1 . 8 Detach 3 | . . . 3 Swap 3 | . 1 . 2 Drop 6 | . 1 1 4 Fire 49 | . 32 5 12 Melee 47 | . . . 47 Ram . | . . . . Kick . | . . . . Crush 2 | . 1 1 . Escape Stasis . | . . . . Rewire . | . . . . Trap . | . . . . Miscellaneous . | . . . . Route ------- -11/Scrapyard -10/Materials -10/Mines -9/Materials (discovered 2 exits: [*Mat] / Min) History --------- Turn | Location | Event 13 | -11/Scrapyard | Discovered new exit (range 14) 69 | -11/Scrapyard | Entered Materials 339 | -10/Materials | Build established: Mutant 434 | -10/Materials | Discovered new exit (range 12) 481 | -10/Materials | Entered Mines 536 | -10/Mines | A weapon hastily lodged in a ceiling crevice suddenly fell to the ground 558 | -10/Mines | Received a Rocket Launcher from a helpful Derelict 682 | -10/Mines | Learned location of 1 exit from Materials 706 | -10/Mines | Assisted by bots powering up and referring to "LRC-V3" 723 | -10/Mines | Learned location of Storage (-8) 847 | -10/Mines | Discovered new exit (range 6) 868 | -10/Mines | Entered Materials 868 | -9/Materials | Accompanied by 3 allies 868 | -9/Materials | Evolved 2 slots: Propulsion x2 869 | -9/Materials | Identified exit to Mines 1031 | -9/Materials | Crushed by falling debris 1076 | -9/Materials | Core integrity fell below 50% 1132 | -9/Materials | Core integrity fell below 20% 1137 | -9/Materials | Lost 12 parts (1p8n2u1w) 1154 | -9/Materials | Destroyed 10 combat bots 1317 | -9/Materials | Discovered new exit (range 16) 1352 | -9/Materials | Destroyed by Y-45 Defender with Heavy Assault Rifle Last Messages --------------- 01263_ Acquired 10 matter. 01265_ Sneak attack on K-01 Serf. 01265_ K-01 Serf destroyed. 01266_ K-01 Serf collects debris. 01270_ Acquired Aluminum Leg. 01272_ R-06 Scavenger collects Wheel. 01273_ System corrupted: Energy discharge (-82). 01274_ Acquired 10 matter. 01275_ R-06 Scavenger collects Wheel. 01277_ R-06 Scavenger collects Heat Sink. 01278_ Acquired Assault Rifle. 01279_ R-06 Scavenger collects Sml. Storage Unit. 01317_ EXIT=FOUND 01318_ System corrupted: Matter fused (-5). 01321_ W-16 Scout sends out distress signal. 01344_ Acquired Hvy. EM Pulse Gun. 01349_ Terminal disabled. 01351_ System corrupted: Heat flow error (+109). 01351_ Y-45 Defender destroyed. Map ----- +----------------------------------------------------+ | ?????# ########+###+###????????? | | ?????# #????????? | | ?????# % +????????? | | ?????# = % #????????? | | ?????# ###/### #????????? | | ?????# ## % # #????????? | | ?????# ## # #????????? | | ?????# + # #????????? | | ?????# ## ! # #????????? | | ?????# ## # #????????? | | ?????# ####+## #????????? | | ?????# #######??? | | ?????# #??? | | ?????# #??? | | ?????###+####### #??? | | ?????? ????## ######### #??? | | ????# #????# #????????????? | | ????# #????# #########+#??? | | ????# " " #????# # #??? | | ????# "R" #????# # " ] #??? | | ????# """ #????# # T #??? | | ????########????# # #??? | | ????????????????# Y [! #??? | | ????????????????# # [! #??? | | ????????????????# # ![! #??? | | ??????????????? # =@%! #??? | | ????????????? #######!###??? | | ???????????? #???????#????? | | ???????????# < #????????????? | | ???????????# #????????????? | | ?????????? ????????????? | | ????????? ????????????? | | ????????? ????????????? | | ?????????#### ????????????? | | ????????????# ????????????? | | ????????????? ? ????????????? | | ????????????????? ?????????????? | | ?????????????????????????????????? | | ?????????????????????????????????? | | ?????????????????????????????????? | | | | | | | | | | | | | | | | | | | | | +----------------------------------------------------+ Best States ------------- Heat Dissipation 28 Energy Generation 12 Energy Capacity 265 Matter Stores 300 Matter Capacity 300 Sight Range 16 Terrain Scan Density 10 Armor Coverage 225 Evasion (%) 55 Recoil Reduction 2 Item Schematics ----------------- None Robot Schematics ------------------ None Fabricated ------------ Nothing Alien Tech Used ----------------- None Achievements -------------- None Challenges ------------ None Game ------ Seed MasterReactiveAutohacker Manual? 0 Play Time 00:12:10 Cumulative 44.0 hours Start 2024.09.17 @ 22:29:33 End 2024.09.17 @ 22:41:06 Sessions 1 Manual Loads 0 Difficulty Rogue Special Mode None Game No. 97 Rogue 97 Adventurer 0 Explorer 0 Win Type - Total 0 Types 0/0/0/0/0/0/0/0/0 Lore% 16 Gallery% 32 Achievement% 26 Wizard Run 0 Options --------- Layout 1 ASCII 0 Keyboard 1 Movement Arrows Keybinds 0 Fullscreen 1 Font 24/Smallcaps Map View 50x35 Zoom Use 0% Tactical HUD 1 Map Filters NONE Filters NONE Steam 1 RUN: 6a674b04-b50a-4aa6-9f67-83f2a0410e13